bitfinex-derivatives/quotes_BTCF0:USTF0_20240917
["timestamp","ask_amount","ask_price","bid_price","bid_amount"]
[1726580731986,0.06067662,59123.0,59120.0,0.084569]
[1726580732192,0.2138345,59129.0,59122.0,0.0004]
[1726580732393,0.2983905,59129.0,59128.0,0.0004]
[1726580732696,0.084565,59123.0,59122.0,0.0004]
[1726580732892,0.445365,59123.0,59122.0,0.0004]
[1726580733082,0.50644162,59123.0,59122.0,0.0004]
[1726580733682,0.66248193,59123.0,59122.0,0.0004]
[1726580733997,0.63859355,59123.0,59119.0,0.03393898]
[1726580734290,0.06067662,59122.0,59121.0,0.084568]
[1726580734491,0.3628,59123.0,59122.0,0.085566]
[1726580734697,0.3628,59123.0,59122.0,0.085966]
[1726580735092,0.002,59123.0,59122.0,0.085966]
[1726580735482,0.002,59123.0,59122.0,0.084966]
[1726580735688,0.0561,59127.0,59125.0,0.084562]
[1726580735889,0.0561,59127.0,59126.0,0.0004]
[1726580736087,0.140659,59127.0,59126.0,0.0004]
[1726580736289,0.19258863,59127.0,59126.0,0.0004]
[1726580737389,0.10802963,59127.0,59126.0,0.0004]
[1726580737689,0.19258863,59127.0,59126.0,0.0004]
[1726580738088,0.19558863,59127.0,59126.0,0.0004]
[1726580738484,0.19758863,59127.0,59126.0,0.0014]
[1726580738679,0.11302963,59127.0,59126.0,0.03199477]
[1726580738880,0.11302963,59127.0,59126.0,0.08696]
[1726580739089,0.19758863,59127.0,59126.0,0.0024]
[1726580739789,0.19758863,59127.0,59109.0,0.084584]
[1726580739790,0.16912,59126.0,59125.0,0.03110677]
[1726580739997,0.084586,59108.0,59105.0,0.00643782]
[1726580740186,0.084589,59106.0,59105.0,0.00253782]
[1726580740510,0.0004,59106.0,59105.0,0.11691803]
[1726580740696,0.0004,59108.0,59107.0,0.084588]
[1726580740993,0.0004,59108.0,59107.0,0.084988]
[1726580741193,0.0004,59108.0,59107.0,0.089988]
[1726580741383,0.084986,59108.0,59107.0,0.005]
[1726580741584,0.05234156,59108.0,59107.0,0.089588]
[1726580741784,0.0004,59108.0,59107.0,0.089588]
[1726580742499,0.0004,59108.0,59107.0,0.099588]
[1726580742990,0.084986,59108.0,59107.0,0.015]
[1726580743385,0.13692754,59108.0,59107.0,0.015]
[1726580743994,0.19762066,59108.0,59107.0,0.015]
[1726580744990,0.19762066,59108.0,59106.0,0.08330088]
[1726580745190,0.05234154,59107.0,59106.0,0.08330088]
[1726580745692,0.13692954,59107.0,59105.0,0.03051208]
[1726580746004,0.05234154,59106.0,59099.0,0.08713688]
[1726580746298,0.0004,59100.0,59099.0,0.00253788]
[1726580746496,0.0004,59100.0,59099.0,0.08713688]
[1726580746700,0.05234154,59100.0,59099.0,0.08713688]
[1726580746888,0.05234154,59100.0,59099.0,0.11801778]
[1726580747692,0.05234617,59100.0,59099.0,0.11801778]
[1726580748496,0.05434617,59100.0,59099.0,0.13601778]
[1726580749097,0.05434617,59100.0,59099.0,0.1334799]
[1726580749394,0.13894417,59100.0,59099.0,0.1334799]
[1726580749907,0.13894417,59100.0,59099.0,0.0488809]
[1726580750088,0.22354217,59100.0,59099.0,0.0488809]
[1726580750288,1.60734417,59100.0,59096.0,0.00253795]
[1726580750489,0.085002,59097.0,59096.0,0.00253795]
[1726580750691,0.13694817,59097.0,59096.0,0.00253795]
[1726580750892,1.38579017,59097.0,59096.0,0.00253795]
[1726580751096,0.50764,59096.0,59092.0,0.0016]
[1726580751405,0.05195823,59095.0,59094.0,0.169212]
[1726580751695,0.3628,59100.0,59097.0,0.084601]
[1726580751696,0.3618,59100.0,59097.0,0.084601]
[1726580751897,0.05195204,59099.0,59098.0,0.0846]
[1726580752196,0.13655204,59099.0,59096.0,0.084603]
[1726580752387,0.0004,59097.0,59096.0,0.084603]
[1726580752587,0.05235204,59097.0,59092.0,0.0016]
[1726580752794,0.3612,59093.0,59092.0,0.0016]
[1726580752997,0.81236804,59093.0,59092.0,0.0016]
[1726580753394,0.81236804,59093.0,59073.0,0.0084]
[1726580753395,0.084625,59081.0,59073.0,0.0084]
[1726580753712,0.084625,59081.0,59066.0,0.0574]
[1726580753713,0.49819039,59081.0,59069.0,0.23]
[1726580753995,0.13739039,59081.0,59080.0,0.03332325]
[1726580754299,0.05276539,59081.0,59080.0,0.08716439]
[1726580754607,0.0008,59081.0,59080.0,0.08716439]
[1726580755100,0.0527653,59081.0,59080.0,0.08716439]
[1726580755407,0.05276796,59081.0,59080.0,0.08716439]
[1726580755594,0.0078,59081.0,59080.0,0.08816439]
[1726580755796,0.0098,59081.0,59080.0,0.08816439]
[1726580756089,0.0098,59081.0,59080.0,0.00353839]
[1726580756796,0.0098,59081.0,59080.0,0.03365234]
[1726580757000,0.094425,59081.0,59080.0,0.00353839]
[1726580757305,0.0098,59081.0,59080.0,0.08816439]
[1726580758004,0.0098,59081.0,59080.0,0.00353839]
[1726580758507,0.084642,59069.0,59068.0,0.3608]
[1726580758707,0.0008,59069.0,59065.0,0.084648]
[1726580759000,0.3616,59066.0,59062.0,0.08719069]
[1726580759205,0.0008,59063.0,59062.0,0.08719169]
[1726580759396,0.3608,59066.0,59063.0,0.08465]
[1726580759596,0.3608,59066.0,59064.0,0.084649]
[1726580760102,0.05198213,59065.0,59062.0,0.03280309]
[1726580760401,0.3608,59066.0,59065.0,0.084648]
[1726580760608,0.3608,59066.0,59063.0,0.23]
[1726580760609,0.0028,59069.0,59063.0,0.5908]
[1726580760796,0.0028,59069.0,59068.0,0.23]
[1726580761000,0.0028,59069.0,59068.0,0.314643]
[1726580761313,0.0028,59069.0,59064.0,0.23]
[1726580761604,0.0008,59069.0,59067.0,0.084644]
[1726580761998,0.084648,59065.0,59064.0,0.01]
[1726580762190,0.530896,59065.0,59064.0,0.01]
[1726580762391,0.530896,59065.0,59055.0,0.00253997]
[1726580762392,1.46952,59065.0,59055.0,0.00253997]
[1726580762596,0.0008,59056.0,59055.0,0.08720197]
[1726580762799,0.0008,59056.0,59055.0,0.31720197]
[1726580763306,0.0008,59056.0,59055.0,0.00253997]
[1726580763502,0.315461,59056.0,59055.0,1e-08]
[1726580763708,0.908122,59056.0,59055.0,1e-08]
[1726580764102,0.084682,59041.0,59039.0,0.3213]
[1726580764319,0.0008,59041.0,59037.0,0.00254068]
[1726580764509,0.0008,59041.0,59040.0,0.314684]
[1726580765800,0.0018,59041.0,59040.0,0.320684]
[1726580765994,0.0028,59041.0,59040.0,0.328684]
[1726580767295,0.0028,59041.0,59040.0,0.35943966]
[1726580767606,0.3608,59055.0,59040.0,1.38287566]
[1726580767813,0.084664,59054.0,59040.0,0.27555566]
[1726580768107,0.3608,59055.0,59050.0,0.23]
[1726580768309,0.3608,59055.0,59054.0,0.084664]
[1726580768697,0.3608,59055.0,59050.0,0.23]
[1726580768904,0.3618,59055.0,59051.0,0.084666]
[1726580769203,0.3608,59052.0,59040.0,0.0158]
[1726580769409,0.3608,59044.0,59043.0,0.084679]
[1726580770304,0.3608,59052.0,59042.0,0.23]
[1726580770603,0.0008,59043.0,59042.0,0.084681]
[1726580770812,0.0008,59043.0,59042.0,0.314681]
[1726580771899,0.0008,59043.0,59042.0,0.244681]
[1726580772208,0.0018,59043.0,59042.0,0.254681]
[1726580772804,0.0028,59043.0,59042.0,0.261681]
[1726580773207,0.0028,59043.0,59042.0,0.346362]
[1726580773714,0.0028,59043.0,59042.0,0.261681]
[1726580773910,0.0028,59043.0,59042.0,0.017]
[1726580774111,0.3636,59043.0,59042.0,0.017]
[1726580774412,0.3636,59043.0,59040.0,0.03159228]
[1726580774413,0.084682,59041.0,59040.0,0.03159228]
[1726580774613,0.085482,59041.0,59040.0,0.03159228]
[1726580775013,0.446282,59041.0,59040.0,0.03159228]
[1726580775212,1.639084,59041.0,59040.0,0.0008]
[1726580775510,1.639084,59041.0,59040.0,0.0088]
[1726580775511,0.955402,59041.0,59040.0,0.0088]
[1726580775712,0.447282,59041.0,59040.0,0.0088]
[1726580775914,0.447282,59041.0,59040.0,0.0118]
[1726580776117,0.0018,59041.0,59040.0,0.35654782]
[1726580776312,0.0018,59041.0,59040.0,0.326484]
[1726580776900,0.0018,59041.0,59040.0,0.35663021]
[1726580777101,0.0018,59041.0,59040.0,0.12663021]
[1726580778028,0.3608,59053.0,59040.0,0.35663021]
[1726580778219,0.4191,59059.0,59054.0,0.084663]
[1726580778220,0.503757,59059.0,59054.0,0.084663]
[1726580778405,0.503757,59059.0,59052.0,0.0004]
[1726580778406,0.503757,59059.0,59058.0,0.0004]
[1726580778714,0.4191,59059.0,59055.0,0.084662]
[1726580778923,0.0004,59056.0,59052.0,0.0004]
[1726580779215,0.0004,59053.0,59052.0,0.03118697]
[1726580779416,0.001,59053.0,59052.0,0.0004]
[1726580779612,0.085665,59053.0,59052.0,0.0004]
[1726580780113,0.446465,59053.0,59052.0,0.0004]
[1726580781023,0.458465,59053.0,59052.0,0.0004]
[1726580781525,0.966505,59053.0,59052.0,0.0004]
[1726580781810,0.458465,59053.0,59052.0,0.0004]
[1726580782217,0.457465,59053.0,59052.0,0.0004]
[1726580783512,0.54213,59053.0,59052.0,0.0004]
[1726580783813,1.71084,59053.0,59041.0,0.00254061]
[1726580784019,0.9516,59042.0,59041.0,0.00254061]
[1726580784222,1.121362,59042.0,59041.0,0.00254061]
[1726580784417,1.121362,59042.0,59038.0,0.03056728]
[1726580784418,0.952,59042.0,59038.0,0.03056728]
[1726580784608,0.084692,59034.0,59033.0,0.00152]
[1726580784810,0.084692,59034.0,59032.0,0.00152]
[1726580784811,0.084694,59033.0,59032.0,0.00152]
[1726580785007,0.084694,59033.0,59028.0,0.00254114]
[1726580785008,0.084698,59031.0,59030.0,0.11521646]
[1726580785313,0.084698,59031.0,59030.0,0.084698]
[1726580785613,0.3608,59033.0,59032.0,0.084695]
[1726580785819,0.445494,59033.0,59032.0,0.085095]
[1726580786219,0.3608,59033.0,59032.0,0.085095]
[1726580787114,0.3618,59033.0,59032.0,0.088095]
[1726580787620,0.3618,59033.0,59032.0,0.0034]
[1726580787621,0.446494,59033.0,59032.0,0.0034]
[1726580788503,0.447494,59033.0,59032.0,0.0134]
[1726580788710,1.785694,59033.0,59032.0,0.0134]
[1726580789205,1.870388,59033.0,59032.0,0.0134]
[1726580789615,1.555694,59033.0,59032.0,0.0134]
[1726580790008,0.447494,59033.0,59032.0,0.0134]
[1726580790717,1.785694,59033.0,59032.0,0.0134]
[1726580792222,0.002,59033.0,59032.0,0.098095]
[1726580792421,0.3628,59033.0,59032.0,0.18279]
[1726580792719,0.3628,59033.0,59032.0,0.098095]
[1726580794332,0.7236,59033.0,59032.0,0.0134]
[1726580794824,0.7236,59033.0,59032.0,0.098095]
[1726580795717,0.7236,59033.0,59032.0,0.0134]
[1726580796114,1.8318,59033.0,59028.0,0.03068716]
[1726580796320,0.2304,59029.0,59021.0,0.03275428]
[1726580796512,0.952,59022.0,59021.0,0.00254144]
[1726580796714,0.9516,59022.0,59021.0,0.00254144]
[1726580796918,2.05988,59022.0,59011.0,0.0311713]
[1726580797124,0.445924,59012.0,59004.0,0.063]
[1726580797315,0.3612,59012.0,59004.0,0.063]
[1726580797618,0.3612,59012.0,59010.0,0.084727]
[1726580797825,0.3612,59012.0,59011.0,0.084725]
[1726580798332,0.0004,59012.0,59011.0,0.084725]
[1726580798512,0.3622,59012.0,59011.0,0.084725]
[1726580799322,0.001,59022.0,59021.0,0.084711]
[1726580799526,0.3618,59022.0,59021.0,0.315111]
[1726580800030,0.3608,59022.0,59021.0,0.315111]
[1726580800523,0.3608,59022.0,59021.0,0.085111]
[1726580800719,0.3608,59022.0,59021.0,0.086311]
[1726580801118,0.3618,59022.0,59021.0,0.092311]
[1726580801426,0.001,59022.0,59021.0,0.322311]
[1726580802624,0.3608,59027.0,59026.0,0.084704]
[1726580802815,0.3231,59069.0,59039.0,0.084685]
[1726580802816,0.3608,59040.0,59039.0,0.084685]
[1726580803016,0.41280662,59040.0,59039.0,0.2304]
[1726580803216,0.41280662,59040.0,59039.0,0.23]
[1726580803518,0.05200386,59040.0,59035.0,0.0578]
[1726580803813,0.121,59049.0,59034.0,0.2325409]
[1726580803814,0.0004,59036.0,59034.0,0.0025409]
[1726580804015,0.05200919,59035.0,59034.0,0.03303245]
[1726580804217,0.13710019,59035.0,59034.0,0.0025409]
[1726580804423,0.64526019,59035.0,59034.0,0.0025409]
[1726580804611,0.76553351,59035.0,59034.0,0.0025409]
[1726580804814,0.25737886,59035.0,59034.0,0.0025409]
[1726580805126,0.05241454,59035.0,59034.0,0.0025409]
[1726580805616,0.05241454,59035.0,59034.0,0.3172329]
[1726580805926,0.06341454,59035.0,59034.0,0.3172329]
[1726580806418,0.05241454,59035.0,59034.0,0.3172329]
[1726580806621,0.05941454,59035.0,59034.0,0.3182329]
[1726580807017,0.05241454,59035.0,59034.0,0.0872329]
[1726580807209,0.06141454,59035.0,59034.0,0.0882329]
[1726580807411,0.06841454,59035.0,59034.0,0.0892329]
[1726580808318,0.06141454,59035.0,59034.0,0.0922329]
[1726580808825,0.06141454,59035.0,59034.0,0.0912329]
[1726580808826,0.05241454,59035.0,59034.0,0.0912329]
[1726580809621,0.65241454,59035.0,59034.0,0.0065409]
[1726580809821,0.70603744,59035.0,59034.0,0.004]
[1726580810026,0.12218644,59035.0,59034.0,0.088692]
[1726580810229,0.06641454,59035.0,59034.0,0.084692]
[1726580811022,0.06841454,59035.0,59034.0,0.085692]
[1726580811214,0.06841454,59035.0,59034.0,0.001]
[1726580811818,0.06141454,59035.0,59029.0,0.0311824]
[1726580812019,0.0004,59030.0,59029.0,0.084699]
[1726580812611,0.05241454,59030.0,59029.0,0.084699]
[1726580813224,0.05541454,59030.0,59029.0,0.169398]
[1726580813616,0.05241454,59030.0,59029.0,0.169398]
[1726580813922,0.007,59035.0,59034.0,0.084692]
[1726580814116,0.007,59035.0,59034.0,0.085092]
[1726580814624,0.4215719,59038.0,59036.0,0.084689]
[1726580815018,0.4215719,59038.0,59037.0,0.085088]
[1726580815223,0.0607719,59038.0,59037.0,0.085088]
[1726580815424,0.21691717,59040.0,59038.0,0.084686]
[1726580815631,0.21691717,59040.0,59039.0,0.085085]
[1726580815926,0.0607719,59041.0,59039.0,0.0004]
[1726580816123,0.2907719,59042.0,59039.0,0.0004]
[1726580816326,0.084684,59040.0,59039.0,0.0004]
[1726580816524,0.084684,59040.0,59036.0,0.0016]
[1726580816721,0.3612,59037.0,59036.0,0.0016]
[1726580816916,0.3612,59037.0,59036.0,0.086289]
[1726580817228,0.57808626,59037.0,59036.0,0.086289]
[1726580817427,0.57808626,59037.0,59036.0,0.316289]
[1726580817625,0.57808626,59037.0,59036.0,0.086289]
[1726580818018,0.4219719,59037.0,59034.0,0.00620777]
[1726580818223,0.0008,59035.0,59032.0,0.084694]
[1726580818422,0.0008,59033.0,59032.0,0.084695]
[1726580818732,0.0607719,59033.0,59032.0,0.084695]
[1726580819025,0.11277702,59033.0,59032.0,0.084695]
[1726580819229,0.11277702,59033.0,59032.0,0.11452914]
[1726580819425,0.11277702,59033.0,59032.0,0.34452914]
[1726580819622,0.11277702,59033.0,59032.0,0.34552914]
[1726580820119,0.11877702,59033.0,59032.0,0.34552914]
[1726580820320,0.11877702,59033.0,59032.0,0.43022414]
[1726580820522,0.0008,59035.0,59034.0,0.169384]
[1726580820523,0.0038,59035.0,59034.0,0.169384]
[1726580820734,0.26593408,59048.0,59047.0,0.084674]
[1726580821036,0.25569315,59049.0,59048.0,0.084672]
[1726580821428,0.25569315,59049.0,59048.0,1.362056]
[1726580821730,0.25569315,59049.0,59048.0,0.169344]
[1726580821930,0.3608,59055.0,59054.0,0.084664]
[1726580822836,0.3458,59055.0,59054.0,0.169328]
[1726580823425,0.3598,59055.0,59054.0,1.278328]
[1726580824033,1e-07,59055.0,59054.0,1.046464]
[1726580824245,0.05683962,59071.0,59070.0,0.084641]
[1726580824428,0.05683962,59071.0,59070.0,0.445441]
[1726580824829,0.0596,59087.0,59070.0,0.3608]
[1726580824830,0.0607,59086.0,59070.0,0.3608]
[1726580825043,0.0607,59086.0,59083.0,0.3608]
[1726580825334,0.0607,59086.0,59084.0,0.08462]
[1726580825539,0.0607,59086.0,59083.0,0.3608]
[1726580825837,0.0597,59091.0,59090.0,0.084612]
[1726580826133,0.0597,59091.0,59090.0,0.314612]
[1726580826537,0.0577,59095.0,59094.0,0.084606]
[1726580827328,0.1184112,59095.0,59094.0,0.084606]
[1726580827535,0.1184112,59095.0,59094.0,0.314606]
[1726580827727,0.0577,59095.0,59094.0,0.675406]
[1726580827934,0.06070347,59108.0,59106.0,0.084588]
[1726580828241,0.3608,59109.0,59107.0,0.084588]
[1726580828242,0.47920347,59109.0,59107.0,0.084588]
[1726580828536,0.06070347,59108.0,59104.0,0.23]
[1726580828736,0.06070347,59108.0,59102.0,0.084595]
[1726580828938,0.0008,59103.0,59102.0,0.084595]
[1726580829345,0.0008,59105.0,59104.0,0.084592]
[1726580829526,0.0008,59105.0,59104.0,0.314592]
[1726580829727,0.0008,59105.0,59104.0,0.675392]
[1726580830546,0.4184,59121.0,59104.0,0.67792989]
[1726580830743,0.05193652,59120.0,59116.0,0.084575]
[1726580830936,0.4184,59121.0,59111.0,0.3608]
[1726580830937,0.05193652,59119.0,59111.0,0.3608]
[1726580831142,0.0008,59112.0,59111.0,0.445382]
[1726580831534,0.4184,59121.0,59113.0,0.084579]
[1726580831733,0.05193526,59120.0,59114.0,0.23]
[1726580831948,0.05193526,59119.0,59114.0,0.23]
[1726580832141,0.05193526,59118.0,59114.0,0.23]
[1726580832343,0.3608,59121.0,59114.0,0.23]
[1726580832642,0.3608,59115.0,59111.0,0.03340905]
[1726580832940,0.084587,59108.0,59104.0,0.00253789]
[1726580833137,0.0008,59105.0,59101.0,0.03013843]
[1726580833335,0.0008,59102.0,59096.0,0.084602]
[1726580833646,0.3608,59097.0,59092.0,0.084608]
[1726580833841,0.0008,59093.0,59091.0,0.03106206]
[1726580834142,0.0008,59093.0,59087.0,0.084615]
[1726580834343,0.0008,59088.0,59087.0,0.084615]
[1726580834546,0.0008,59088.0,59081.0,0.00253884]
[1726580834844,0.0008,59088.0,59082.0,0.084623]
[1726580835049,0.06069577,59091.0,59087.0,0.23]
[1726580835243,0.3608,59089.0,59088.0,0.084615]
[1726580835556,0.0008,59093.0,59087.0,0.23]
[1726580835739,0.0008,59093.0,59092.0,0.314609]
[1726580835940,0.0008,59093.0,59092.0,0.830289]
[1726580836138,0.0008,59093.0,59092.0,1.430289]
[1726580836745,0.0008,59093.0,59092.0,1.422289]
[1726580837141,0.0008,59093.0,59092.0,0.822289]
[1726580837336,0.0008,59093.0,59092.0,0.322609]
[1726580837545,0.0008,59093.0,59092.0,1.430289]
[1726580837741,0.0008,59105.0,59104.0,0.084592]
[1726580837948,0.0008,59105.0,59101.0,0.3608]
[1726580838148,0.0008,59102.0,59101.0,0.084596]
[1726580838337,0.0008,59102.0,59098.0,0.00253786]
[1726580838538,0.0008,59099.0,59098.0,0.00253786]
[1726580838842,0.0008,59099.0,59098.0,0.08713886]
[1726580839046,0.0606993,59107.0,59098.0,0.08713886]
[1726580839247,0.08459,59106.0,59101.0,0.002]
[1726580840139,0.08459,59106.0,59101.0,0.232]
[1726580840341,0.0606993,59107.0,59101.0,0.232]
[1726580840548,0.0606993,59107.0,59102.0,0.084595]
[1726580840753,0.23,59104.0,59098.0,0.03551381]
[1726580840941,0.0606993,59107.0,59080.0,0.55624]
[1726580840942,0.5916,59099.0,59093.0,0.03036914]
[1726580841141,0.5916,59099.0,59082.0,0.3647]
[1726580841142,0.5908,59094.0,59089.0,0.00253787]
[1726580841345,0.085412,59090.0,59089.0,0.00253787]
[1726580841837,0.084612,59090.0,59089.0,0.00253787]
[1726580842347,0.36256001,59094.0,59089.0,0.00253787]
[1726580842558,0.3616,59094.0,59093.0,0.314608]
[1726580842748,0.084612,59090.0,59089.0,0.00353787]
[1726580842949,0.315412,59090.0,59089.0,0.00353787]
[1726580843345,0.0008,59090.0,59089.0,0.00353787]
[1726580843645,0.0008,59090.0,59089.0,0.08815087]
[1726580843846,0.0008,59090.0,59089.0,0.53356387]
[1726580844041,0.00168,59094.0,59089.0,0.53356387]
[1726580844042,0.00168,59094.0,59093.0,0.084608]
[1726580844256,0.3608,59102.0,59098.0,0.084601]
[1726580844451,0.001,59107.0,59098.0,0.445401]
[1726580844653,0.1239,59109.0,59098.0,0.445401]
[1726580844839,0.1239,59109.0,59098.0,1.637642]
[1726580845043,0.3608,59111.0,59098.0,1.637642]
[1726580845250,0.3608,59111.0,59108.0,0.084585]
[1726580847353,0.3608,59111.0,59108.0,0.001]
[1726580847551,0.0582,59122.0,59108.0,0.001]
[1726580847552,0.0039,59125.0,59110.0,0.7208]
[1726580847758,0.3647,59132.0,59124.0,0.36]
[1726580847968,0.3608,59132.0,59125.0,0.084562]
[1726580848251,0.3608,59127.0,59124.0,0.36]
[1726580848451,0.3608,59127.0,59126.0,0.08456]
[1726580848850,0.3608,59132.0,59124.0,0.36]
[1726580849051,0.0008,59125.0,59124.0,0.361]
[1726580849346,0.0008,59125.0,59124.0,0.445563]
[1726580849750,0.0008,59125.0,59124.0,0.444563]
[1726580849950,0.003,59132.0,59124.0,1.35136887]
[1726580850157,0.3692,59149.0,59131.0,0.36]
[1726580850455,0.3608,59140.0,59137.0,0.444544]
[1726580850658,0.3608,59140.0,59139.0,0.084542]
[1726580851049,0.3608,59149.0,59139.0,0.3608]
[1726580851249,0.3608,59149.0,59148.0,0.084529]
[1726580851560,0.3608,59158.0,59148.0,0.084528]
[1726580851855,0.3608,59158.0,59157.0,0.0004]
[1726580852060,0.3608,59158.0,59148.0,0.0004]
[1726580852061,0.084517,59157.0,59148.0,0.0004]
[1726580852357,0.08454,59141.0,59139.0,0.00732]
[1726580852659,0.7824,59140.0,59124.0,0.001]
[1726580852858,0.3612,59129.0,59124.0,0.001]
[1726580853169,0.3612,59129.0,59125.0,0.36]
[1726580853468,0.3612,59129.0,59128.0,0.08709414]
[1726580853649,0.0004,59129.0,59128.0,0.08709414]
[1726580854262,0.0004,59129.0,59128.0,0.00253614]
[1726580855552,0.0024,59129.0,59128.0,0.00253614]
[1726580855764,1.10976,59129.0,59128.0,0.00253614]
[1726580856059,1.10976,59129.0,59121.0,0.084567]
[1726580856254,0.0004,59122.0,59121.0,0.084567]
[1726580856456,0.05232858,59122.0,59121.0,0.084567]
[1726580856757,0.05232858,59122.0,59121.0,0.445367]
[1726580856950,0.05232858,59122.0,59121.0,0.952807]
[1726580857150,0.05232021,59122.0,59121.0,0.952807]
[1726580857550,0.05232021,59122.0,59121.0,1.640375]
[1726580858065,0.05232021,59122.0,59121.0,1.59464518]
[1726580858254,0.05232021,59122.0,59121.0,0.99464518]
[1726580858451,0.05232021,59122.0,59121.0,1.59464518]
[1726580858957,0.05232021,59122.0,59121.0,1.67921318]
[1726580859161,0.05232021,59122.0,59121.0,1.59464518]
[1726580859554,0.05332021,59122.0,59121.0,1.60364518]
[1726580859956,0.05332021,59122.0,59121.0,0.49620518]
[1726580860248,0.05332021,59122.0,59121.0,1.09620518]
[1726580860449,0.06067813,59138.0,59121.0,1.60364518]
[1726580860654,0.009899,59137.0,59136.0,0.084546]
[1726580860850,0.06067813,59144.0,59141.0,0.084538]
[1726580861062,0.06067813,59144.0,59142.0,0.3604]
[1726580861360,0.06067813,59144.0,59142.0,0.444938]
[1726580861659,0.7874,59147.0,59142.0,0.0004]
[1726580861861,0.7874,59147.0,59132.0,0.3608]
[1726580861862,0.084544,59138.0,59132.0,0.3608]
[1726580862066,0.084544,59138.0,59130.0,0.0870905]
[1726580862067,0.0004,59133.0,59130.0,0.0025365]
[1726580862255,0.3612,59131.0,59130.0,0.0025365]
[1726580862461,0.445353,59131.0,59130.0,0.00228286]
[1726580862654,1.10603113,59131.0,59130.0,0.00228286]
[1726580862961,1.10603113,59131.0,59117.0,0.00253734]
[1726580862962,1.52883813,59131.0,59117.0,0.00253734]
[1726580863165,0.0004,59118.0,59117.0,0.00253734]
[1726580863365,0.0004,59118.0,59117.0,0.08711034]
[1726580864960,0.0004,59118.0,59117.0,0.09711034]
[1726580865459,0.0004,59118.0,59117.0,0.10911034]
[1726580867766,0.0004,59118.0,59117.0,0.46991034]
[1726580868077,0.0004,59118.0,59117.0,0.69991034]
[1726580869972,0.0004,59118.0,59117.0,1.14528334]
[1726580870165,0.0004,59133.0,59128.0,0.23]
[1726580870363,0.0004,59133.0,59132.0,0.084552]
[1726580870666,0.0004,59133.0,59132.0,0.084952]
[1726580871565,0.0642,59139.0,59137.0,0.084545]
[1726580871775,0.0642,59139.0,59137.0,0.314945]
[1726580873371,0.0642,59139.0,59137.0,0.34404266]
[1726580873672,0.0642,59139.0,59137.0,0.25949766]
[1726580873876,0.148743,59139.0,59137.0,0.25949766]
[1726580874069,0.445343,59138.0,59137.0,0.0004]
[1726580874267,0.49726026,59138.0,59137.0,0.0004]
[1726580874672,0.084545,59137.0,59131.0,0.084552]
[1726580874873,0.0004,59132.0,59131.0,0.084552]
[1726580875073,0.0004,59132.0,59129.0,0.11558442]
[1726580875384,0.084955,59130.0,59128.0,0.00132]
[1726580875578,0.084559,59128.0,59123.0,0.084565]
[1726580875769,0.084559,59128.0,59125.0,0.084562]
[1726580875770,0.3608,59126.0,59125.0,0.084562]
[1726580875975,0.41271826,59126.0,59125.0,0.084562]
[1726580876473,0.41271826,59126.0,59124.0,0.36]
[1726580876680,0.05231826,59125.0,59124.0,0.36]
[1726580876990,0.05231826,59125.0,59124.0,0.444563]
[1726580877680,0.23572969,59125.0,59124.0,0.444563]
[1726580878582,0.05231826,59125.0,59124.0,0.805363]
[1726580878771,0.05231826,59125.0,59124.0,0.91800632]
[1726580878973,0.05231826,59125.0,59124.0,2.02540632]
[1726580879169,0.05231826,59125.0,59124.0,0.47464332]
[1726580879370,0.05231826,59125.0,59124.0,0.83544332]
[1726580879779,0.05232075,59125.0,59124.0,0.83944332]
[1726580880179,0.05232075,59125.0,59124.0,0.47864332]
[1726580880577,0.26980812,59125.0,59124.0,0.56320632]
[1726580880773,0.06457659,59141.0,59124.0,1.50148032]
[1726580880980,0.0084,59150.0,59140.0,0.7212]
[1726580881182,0.0671,59151.0,59149.0,0.0004]
[1726580881482,0.12777659,59151.0,59150.0,0.0004]
[1726580881797,0.12777659,59151.0,59140.0,0.7212]
[1726580881798,0.12777659,59151.0,59148.0,0.084528]
[1726580881977,0.0004,59149.0,59148.0,0.084528]
[1726580882177,0.0004,59149.0,59146.0,0.36]
[1726580882377,0.0004,59147.0,59146.0,0.36]
[1726580882680,0.0004,59147.0,59146.0,0.444532]
[1726580882881,0.0674,59151.0,59146.0,0.36]
[1726580883175,0.06067659,59150.0,59148.0,0.084528]
[1726580883375,0.06067659,59149.0,59148.0,0.084528]
[1726580883573,0.33292119,59151.0,59146.0,0.31979016]
[1726580883574,0.06067659,59150.0,59149.0,0.084528]
[1726580883779,0.06067659,59150.0,59149.0,0.084928]
[1726580884591,0.06067659,59150.0,59146.0,0.31979016]
[1726580884592,1.16787659,59150.0,59146.0,0.001]
[1726580884785,0.084532,59146.0,59145.0,0.00253558]
[1726580884977,0.14560859,59146.0,59145.0,0.00253558]
[1726580885178,0.084534,59145.0,59140.0,0.0004]
[1726580885379,0.0004,59141.0,59140.0,0.0004]
[1726580885891,0.05231184,59141.0,59138.0,0.3608]
[1726580886088,0.05191184,59140.0,59139.0,0.084542]
[1726580887192,0.05191184,59140.0,59138.0,0.38995855]
[1726580887379,0.05231065,59139.0,59138.0,0.38863855]
[1726580887579,0.05231065,59139.0,59138.0,0.47318155]
[1726580887893,0.05231065,59139.0,59138.0,0.38863855]
[1726580888780,0.05231065,59139.0,59136.0,0.36]
[1726580888781,0.05231065,59139.0,59128.0,0.084556]
[1726580888984,0.084548,59136.0,59135.0,0.00253655]
[1726580889184,0.05191065,59136.0,59126.0,0.36]
[1726580889390,0.0679,59138.0,59126.0,0.36]
[1726580889391,0.0004,59127.0,59126.0,0.36]
[1726580889587,0.0004,59127.0,59126.0,0.38824226]
[1726580889778,0.05231065,59127.0,59126.0,0.02824226]
[1726580889983,0.41311065,59127.0,59123.0,0.00253686]
[1726580890180,0.084565,59123.0,59111.0,0.0014]
[1726580890484,0.084565,59123.0,59103.0,0.36]
[1726580890485,0.3612,59112.0,59103.0,0.02880101]
[1726580890679,0.0004,59107.0,59103.0,0.02880101]